Cogmind - Beta 9.4 @@@ ROGUE MODE // 2020.02.09 @ 17:46:34 Player: Ctrl_Alt_X Result: Destroyed by Light Fission Core chain reaction Performance ------------- Evolutions (0) 0 Regions Visited (3) 600 Robots Destroyed (15) 75 Value Destroyed (216) 216 Prototype IDs (0) 0 Alien Tech Used (0) 0 Bonus (-18) -18 TOTAL SCORE: 873 Bonus ------- Friendly Fire -18 Cogmind --------- Core Integrity 0/250 Matter 300/300 Energy 98/100 System Corruption 3% Temperature Cool (12) Movement Core (50) Location -10/Exiles Parts ------- > --- POWER (1) -------- (None) > --- PROPULSION (2) --- (None) > --- UTILITY (2) ------ (None) > --- WEAPON (2) ------- (None) > --- INVENTORY (4) ---- Medium Storage Unit Advanced Targeting Computer EM Pulse Gun Ion Cannon Peak State ------------ > --- POWER ------------ Ion Engine > --- PROPULSION ------- Wheel Compact Wheel > --- UTILITY ---------- Heat Sink High-capacity Storage Unit > --- WEAPON ----------- EM Pulse Gun Shock Rifle > --- INVENTORY -------- Wheel Medium Storage Unit Medium Storage Unit Medium Storage Unit Medium Storage Unit Improved Terrain Scan Processor Advanced Targeting Computer EM Pulse Gun EM Pulse Gun EM Pulse Gun EM Pulse Gun Ion Cannon [Rating: 10] Favorites ----------- Power Ion Engine Engine Ion Engine Propulsion Compact Wheel Wheel Compact Wheel Utility Heat Sink Device Heat Sink Storage High-capacity Storage Unit Weapon EM Pulse Gun Energy Gun EM Pulse Gun Ballistic Gun Light Assault Rifle Build | -11 -10 -10 -10 ------- Run | Scr Mat Min Exi Slots Evolved . | . . . . Power . | . . . . Propulsion . | . . . . Utility . | . . . . Weapon . | . . . . Parts Attached 15 | 4 10 . 1 Power 2 | 1 1 . . Engine 2 | 1 1 . . Core . | . . . . Reactor . | . . . . Propulsion 3 | 2 1 . . Treads . | . . . . Leg . | . . . . Wheel 3 | 2 1 . . Hover . | . . . . Flight . | . . . . Utility 4 | 1 3 . . Device 2 | . 2 . . Storage 2 | 1 1 . . Processor . | . . . . Hackware . | . . . . Protection . | . . . . Artifact . | . . . . Weapon 6 | . 5 . 1 Energy Gun 3 | . 2 . 1 Energy Cannon . | . . . . Ballistic Gun 3 | . 3 . . Ballistic Cannon . | . . . . Launcher . | . . . . Special Weapon . | . . . . Impact Weapon . | . . . . Slashing Weapon . | . . . . Piercing Weapon . | . . . . Special Melee Weapon . | . . . . Unidentified Prototypes . | . . . . Parts Lost 6 | . . . 6 Power 1 | . . . 1 Propulsion 2 | . . . 2 Utility 1 | . . . 1 Weapon 2 | . . . 2 Highest Loss Streak 6 | . . . 6 Average Slot Usage (%) 96 | . 93 100 92 Engine 13 | . 13 14 12 Wheel 28 | . 28 28 28 Device 13 | . 12 14 12 Storage 14 | . 14 14 14 Energy Gun 18 | . 8 28 24 Ballistic Gun 7 | . 15 . . Naked Turns 2 | . . . 2 Heaviest Build 42 | 9 42 42 42 Greatest Support 32 | 32 32 26 26 Greatest Overweight (x) 1 | . 1 1 1 Average Overweight (x) . | . . 1 . Largest Inventory Capacity 12 | 6 12 12 12 Average Capacity 9 | 5 6 12 11 Most Carried 12 | 6 10 12 12 Average Carried 8 | 2 5 11 11 Final Capacity 12 | 6 12 12 4 Final Carried 12 | 6 10 12 4 Class Distribution -------------------- 100% | Mutant Dominant Class ---------------- Mutant | -10/Materials Mutant | -10/Mines Mutant | -10/Exiles Resources | -11 -10 -10 -10 ----------- Run | Scr Mat Min Exi Matter Collected 436 | 240 196 . . Remotely . | . . . . Salvage Created 446 | . 392 54 . Parts 31 | . 23 8 . Haulers Intercepted 1 | . 1 . . Recyclers Shooed 1 | . 1 . . Parts Field Recycled . | . . . . Retrieved Matter . | . . . . Parts Self-Destructed . | . . . . Prevented . | . . . . Kills | -11 -10 -10 -10 ------- Run | Scr Mat Min Exi Combat Hostiles Destroyed 12 | . 9 3 . Guns 12 | . 9 3 . Classes Destroyed 5 | . 5 . . Hauler 1 | . 1 . . Recycler 1 | . 1 . . Watcher 1 | . 1 . . Swarmer 9 | . 6 3 . Grunt 3 | . 3 . . Best Kill Streak 6 | . 6 3 . Combat Bots Only 6 | . 6 3 . Max Kills in Single Turn 2 | . 1 2 . Gunslinging 1 | . . 1 . Exploded . | . . . . Melee . | . . . . Uniques/NPCs Destroyed . | . . . . Combat | -11 -10 -10 -10 -------- Run | Scr Mat Min Exi Damage Taken 749 | . 266 128 355 Core 254 | . 76 33 145 Absorbed by Shields . | . . . . Core Remaining (%) 100 | 100 . . . Volleys Fired 40 | . 32 5 3 Largest 2 | . 2 2 2 Hottest 90 | . 80 80 90 Shots Fired 80 | . 64 10 6 Gun 80 | . 64 10 6 Cannon . | . . . . Launcher . | . . . . Special . | . . . . Kinetic 48 | . 48 . . Thermal . | . . . . Explosive . | . . . . Electromagnetic 32 | . 16 10 6 Robot Hit Streak 9 | . 9 3 6 Robot Miss Streak 4 | . 4 3 2 Penetration Max . | . . . . Secondary Targets 1 | . . 1 . Max Gunslinging Chain 1 | . . 1 . Shots Hit Robots 41 | . 32 5 4 Core Hits 22 | . 16 3 3 Critical Hits . | . . . . Critical Kills . | . . . . Critical Parts Destroyed . | . . . . Melee Attacks . | . . . . Impact . | . . . . Slashing . | . . . . Piercing . | . . . . Sneak Attacks . | . . . . Combat Hostiles . | . . . . Follow-up Attacks . | . . . . Damage Inflicted 485 | . 414 67 4 Guns 437 | . 366 67 4 Cannons . | . . . . Explosions 48 | . 48 . . Melee . | . . . . Ramming . | . . . . Kinetic 227 | . 227 . . Thermal 48 | . 48 . . Explosive . | . . . . Electromagnetic 210 | . 139 67 4 Impact . | . . . . Slashing . | . . . . Piercing . | . . . . Highest Corruption 3 | . . . 3 Average Corruption 3 | . . . 3 Corruption Purged . | . . . . Overload Shots . | . . . . Overflow Damage . | . . . . Projectiles . | . . . . Explosions . | . . . . Melee . | . . . . Knockbacks . | . . . . Impact . | . . . . Kinetic . | . . . . Secondary . | . . . . Self-Inflicted Damage . | . . . . Shots . | . . . . Rammed . | . . . . Targets Rammed . | . . . . Kicked . | . . . . Crushed . | . . . . Highest Temperature 22 | . 22 . . Average Temperature 12 | . 12 . . Received Heat Transfer 74 | . 54 . 20 Siege Activations . | . . . . Robots Corrupted . | . . . . Combat Hostiles . | . . . . Parts Fried 2 | . 2 . . Impact Corruptions . | . . . . Robots Melted . | . . . . Combat Hostiles . | . . . . Parts Melted . | . . . . Heat Transferred 50 | . 50 . . Parts Sabotaged . | . . . . Parts Stolen . | . . . . Parts Stripped . | . . . . Power Chain Reactions 1 | . 1 . . Missiles Intercepted . | . . . . Alert | -11 -10 -10 -10 ------- Run | Scr Mat Min Exi Peak Influence 263 | . 263 172 . Average Influence 136 | . 143 169 . Maximum Alert Level 1 | . 1 . . Low Security (%) 79 | 100 57 100 . Level 1 20 | . 42 . . Level 2 . | . . . . Level 3 . | . . . . Level 4 . | . . . . Level 5 . | . . . . High Security . | . . . . Max Security . | . . . . Squads Dispatched . | . . . . Investigation . | . . . . Extermination . | . . . . Reinforcement . | . . . . Assault . | . . . . Garrison . | . . . . Intercept . | . . . . Construction Impeded . | . . . . Haulers Reinforced . | . . . . Stealth | -11 -10 -10 -10 --------- Run | Scr Mat Min Exi Distress Signals 1 | . 1 . . Communications Jammed . | . . . . Distress Signals . | . . . . Times Spotted 22 | . 12 3 7 Peak Tracking Total 9 | . 4 3 9 Tactical Retreats 1 | . 1 . . Traps | -11 -10 -10 -10 ------- Run | Scr Mat Min Exi Traps Triggered 1 | . 1 . . Indirectly . | . . . . Trap Hack Attempts . | . . . . Triggered . | . . . . Disarmed . | . . . . Reprogrammed . | . . . . Reused . | . . . . Traps Extracted . | . . . . Installed . | . . . . Triggered . | . . . . Machines | -11 -10 -10 -10 ---------- Run | Scr Mat Min Exi Machines Disabled 2 | . . . 2 Max in Single Turn 1 | . . . 1 Machines Sabotaged . | . . . . Garrisons Compromised . | . . . . Overloaded Fab Kills . | . . . . Fab Network Shutdowns . | . . . . Hacking | -11 -10 -10 -10 --------- Run | Scr Mat Min Exi Machines Accessed 3 | . 2 1 . Terminals 2 | . 2 . . Fabricators . | . . . . Repair Stations . | . . . . Recycling Units . | . . . . Scanalyzers . | . . . . Garrison Access . | . . . . Total Hacks 6 | . 5 1 . Successful 3 | . 2 1 . Failed 3 | . 3 . . Catastrophic . | . . . . Database Lockouts . | . . . . Manual 3 | . 3 . . Terminals 5 | . 5 . . Fabricators . | . . . . Repair Stations . | . . . . Recycling Units . | . . . . Scanalyzers . | . . . . Garrison Access . | . . . . Terminal Hacks 2 | . 1 1 . Open Door 1 | . . 1 . Zone Layout 1 | . 1 . . Fabricator Hacks . | . . . . Repair Station Hacks . | . . . . Recycling Unit Hacks . | . . . . Scanalyzer . | . . . . Garrison Access Hacks . | . . . . Unauthorized Hacks 2 | . 2 . . Terminals 1 | . 1 . . Botnet 1 | . 1 . . Fabricators . | . . . . Repair Stations . | . . . . Recycling Units . | . . . . Scanalyzers . | . . . . Garrison Access . | . . . . Data Cores Recovered . | . . . . Used . | . . . . Hacking Detections 2 | . 2 . . Full Trace Events . | . . . . Feedback Events . | . . . . Feedback Blocked . | . . . . Robot Schematics Acquired . | . . . . Robots Built . | . . . . Matter . | . . . . Time . | . . . . Total Robot Build Rating . | . . . . Part Schematics Acquired . | . . . . Parts Built . | . . . . Matter . | . . . . Time . | . . . . Total Part Build Rating . | . . . . Parts Repaired . | . . . . Time . | . . . . Parts Recycled . | . . . . Recycled Matter . | . . . . Retrieved Matter . | . . . . Retrieved Components . | . . . . Parts Scanalyzed . | . . . . Part Schematics Acquired . | . . . . Parts Damaged . | . . . . Bothacking | -11 -10 -10 -10 ------------ Run | Scr Mat Min Exi Used RIF Installer . | . . . . Robots Hacked . | . . . . Non-combat . | . . . . Combat . | . . . . Robot Hacks Applied . | . . . . Relay Couplers Released . | . . . . Robots Rewired . | . . . . Allies Hacked . | . . . . Hacks Repelled . | . . . . Allies | -11 -10 -10 -10 -------- Run | Scr Mat Min Exi Total Allies 3 | . . 3 . Largest Group 3 | . . 3 3 Highest-Rated Group 40 | . . 40 40 Highest-Rated Ally 16 | . . 16 16 Total Orders . | . . . . Ally Attacks 8 | . . . 8 Total Damage 7 | . . . 7 Kills . | . . . . Allies Corrupted . | . . . . Allies Melted . | . . . . Intel | -11 -10 -10 -10 ------- Run | Scr Mat Min Exi Robot Analysis Total . | . . . . Derelict Logs Recovered . | . . . . Drone Launches . | . . . . Drone Recoveries . | . . . . Exploration | -11 -10 -10 -10 ------------- Run | Scr Mat Min Exi Turns Passed 654 | 69 279 228 78 Spaces Moved 466 | 58 149 190 69 Core 6 | 2 . . 4 Treads . | . . . . Legs . | . . . . Wheels 460 | 56 149 190 65 Hover . | . . . . Flight . | . . . . Fastest Speed 50 | 50 90 100 50 Average Speed 99 | 98 99 100 97 Slowest Speed 100 | 100 100 100 100 Overloaded Moves . | . . . . Propulsion Burnouts . | . . . . Robots Hopped . | . . . . Cave-ins Triggered . | . . . . Exploration Rate (%) 22 | 4 28 43 15 Regions Visited 3 Branch Regions 2 Pre-discovered Areas . | . . . . Known Exits Taken . | . . . . Unknown Exits Taken 3 | 1 1 1 . Scrap Searched . | . . . . Spaces Dug . | . . . . Terrain Destroyed . | . . . . Melee . | . . . . Projectile . | . . . . AOE . | . . . . Actions | -11 -10 -10 -10 --------- Run | Scr Mat Min Exi Total 582 | 68 222 218 74 Wait 32 | . 14 18 . Move 463 | 57 148 189 69 Hop . | . . . . Pick Up 21 | 7 10 4 . Fast Attach 9 | 3 6 . . Attach 3 | 1 2 . . Detach . | . . . . Swap 3 | . 2 . 1 Drop 11 | . 8 2 1 Fire 40 | . 32 5 3 Melee . | . . . . Ram . | . . . . Kick . | . . . . Crush . | . . . . Escape Stasis . | . . . . Rewire . | . . . . Trap . | . . . . Miscellaneous . | . . . . Route ------- -11/Scrapyard -10/Materials -10/Mines -10/Exiles History --------- Turn | Location | Event 29 | -11/Scrapyard | Discovered new exit (range 15) 70 | -11/Scrapyard | Entered Materials 280 | -10/Materials | Discovered new exit (range 16) 302 | -10/Materials | Build established: Mutant 349 | -10/Materials | Entered Mines 378 | -10/Mines | Assisted by bots powering up and referring to "LRC-V3" 402 | -10/Mines | Met a Derelict who couldn't figure out how to use a Trap Extractor 557 | -10/Mines | Deemed a non-threat by the Exiles lab entrance 557 | -10/Mines | Discovered new exit (range 5) 577 | -10/Mines | Entered Exiles 577 | -10/Exiles | Accompanied by 3 allies 602 | -10/Exiles | Met 8R-AWN 625 | -10/Exiles | Met EX-HEX 636 | -10/Exiles | Attacked by the Exiles 646 | -10/Exiles | Core integrity fell below 50% 655 | -10/Exiles | Destroyed by Light Fission Core chain reaction Last Messages --------------- 00643_ Penetrated by HV Slug. 00643_ Critical hit. 00643_ EM Pulse Gun destroyed. 00643_ HV Slug penetrates Wall. 00643_ Ion Engine destroyed. 00645_ Penetrated by HV Slug. 00645_ HV Slug penetrates Wall. 00645_ Penetrated by HV Slug. 00645_ HV Slug penetrates Wall. 00647_ Penetrated by HV Slug. 00647_ Shock Rifle destroyed. 00647_ HV Slug penetrates Wall. 00648_ Heat Sink destroyed. 00648_ System corrupted by crushing effect (+3). 00652_ Rigged Lgt. Fission Core explodes. 00652_ Wheel destroyed. 00652_ Com. Wheel destroyed. 00652_ Machine disabled. 00653_ Dropped Hcp. Storage Unit. 00655_ Rigged Lgt. Fission Core explodes. Map ----- +----------------------------------------------------+ | ?????????????????????????????????????????????????? | | ?????????????????????????????????????????????????? | | ?????????????????????????????????????????????????? | | ?????????????????????????????????????????????????? | | ?????????????????????????????????????????????????? | | ?????????????????????????????????????????????????? | | ?????????????????????????????????????????????????? | | ?????????????????????????????????????????????????? | | ?????????????????????????????????????????????????? | | ?????????????????????????????????????????????????? | | ?????????????????????????????????????????????????? | | ?????????????????????????????????????????????????? | | ????????????????????????????????? ??????????????? | | ????????????????????????????????? ????????????? | | ????????????????????????????????? ????????????? | | ????????????????????????????????# #????????????? | | ??????????????????????????????## ##???????????? | | ??????????????????????????????# #???????????? | | ??????????#####???????????????# #???????????? | | ?????????## #??????????????## ????????????? | | ?????????# #?????????????## #?????????????? | | ????????##" [##????????????# #?????????????? | | "?????### %%%!##########?### #??????????????? | | #????# === ##;;; ### #??????????????? | | #??## a g# ![!;# #???????????????? | | ### a a a =!a @ ##??????????????? | | #; a !![ #??????????????? | | ## # ##?????????????? | | ""##;""" "#;## ###???????????? | | #"""### ####### #### * ###?????????? | | ######?##???????##??##### ##????????? | | #????????????????????????### #????????? | | #???????????????????????????### #????????? | | ""??????????????????????????????### #????????? | | "????????????????????????????????#" ##???????? | | ?????????????????????????????????#### ###?????? | | ????????????????????????????????????# ##????? | | ????????????????????????????????????## ###??? | | ?????????????????????????????????????### #??? | | ???????????????????????????????????????# ##??? | | ???????????????????????????????????????## ##???? | | ????????????????????????????????????????#####????? | | ?????????????????????????????????????????????????? | | ?????????????????????????????????????????????????? | | ?????????????????????????????????????????????????? | | ?????????????????????????????????????????????????? | | ?????????????????????????????????????????????????? | | ?????????????????????????????????????????????????? | | ?????????????????????????????????????????????????? | | ?????????????????????????????????????????????????? | +----------------------------------------------------+ Best States ------------- Heat Dissipation 35 Energy Generation 10 Energy Capacity 250 Matter Stores 300 Matter Capacity 300 Sight Range 16 Terrain Scan Density 10 Evasion (%) 42 Item Schematics ----------------- None Robot Schematics ------------------ None Fabricated ------------ Nothing Alien Tech Used ----------------- None Achievements -------------- None Challenges ------------ None Game ------ Seed ShadingGrenadeExoskeleton Manual? 0 Play Time 00:10:11 Cumulative 466.7 hours Start 2020.02.09 @ 17:22:18 End 2020.02.09 @ 17:46:34 Sessions 1 Manual Loads 0 Difficulty Rogue Special Mode None Game No. 302 Rogue 302 Adventurer 0 Explorer 0 Win Type - Total 32 Types 21/1/5/5/0/0/0 Lore% 88 Gallery% 88 Achievement% 76 Wizard Run 0 Options --------- ASCII 1 Keyboard 0 Movement Numpad Keybinds 0 Fullscreen 1 Font 20/SmallcapsGlow Map View 98x62 Tactical HUD 1 Map Filters NONE Filters NONE Steam 1 RUN: f1400283-94ad-45c2-bffe-be6b7f2fc75f